[Event "Charlotte IM-C May 2022"]
[Site "Charlotte"]
[Date "2022.05.05"]
[Round "1.1"]
[White "Wang, Tianqi"]
[Black "Martin Del Campo Cardenas, Roberto Abel"]
[Result "1-0"]
[ECO "B08"]
[WhiteElo "2331"]
[BlackElo "2263"]
[Annotator "TA"]
[PlyCount "101"]
[EventDate "2022.05.04"]
[EventType "tourn"]
[EventCountry "USA"]
[SourceTitle "playchess.com"]
[Source "ChessBase"]
[SourceQuality "1"]
[TimeControl "5400+30"]

{[%evp 12,101,31,25,83,68,114,62,101,70,108,114,187,132,127,72,72,49,58,54,76,51,62,50,50,35,54,54,51,54,56,39,50,53,70,52,90,104,100,80,153,151,158,168,191,169,170,185,165,75,77,86,81,71,146,112,120,57,239,254,252,223,218,140,145,151,152,165,143,153,159,155,321,320,467,467,461,460,454,454,438,438,518,517,1599,1316,1364,491,1080,1028,12843,12842]} 1. d4 {[%emt 0:12:27]} Nf6 {[%emt 0:00:51]} 2. Nf3 {[%emt 0:00:13]} g6 {[%emt 0:02:11]} 3. Nc3 {[%emt 0:00:08]} Bg7 {[%emt 0:00:58]} 4. e4 {[%emt 0:00:11]} d6 {[%emt 0:00:06]} 5. Be2 {[%emt 0:00:16]} a6 {[%emt 0:01:01]} 6. O-O {[%emt 0:02:04]} O-O {[%emt 0:02:02]} 7. Re1 {[%emt 0:17:56]} b5 {[%emt 0:06:05] B08: Pirc Defence: Classical System.} (7... Nc6 $11) 8. e5 $16 {[%emt 0:00:46]} Ne8 {[%emt 0:17:21]} (8... dxe5 $14 {deserves consideration.} 9. Nxe5 (9. dxe5 Nfd7 $14) 9... Bb7) 9. Bf4 {[%emt 0:13:15] [#]} ({Better is} 9. a4 $16) 9... Nc6 $146 {[%emt 0:04:38] White is slightly better.} ({Predecessor:} 9... Bb7 10. e6 b4 11. Nb1 f5 12. c3 a5 13. Qb3 Nf6 14. cxb4 axb4 15. Qxb4 Bd5 {0-1 (34) Efimenko,Z (2635)-Firman,N (2489) Alushta 2007}) 10. h3 {[%emt 0:03:27]} b4 {[%emt 0:26:17]} 11. Ne4 {[%emt 0:02:32]} f5 {[%emt 0:05:05]} (11... Rb8 $16) 12. exf6 {[%emt 0:03:42]} (12. Ned2 $18) 12... Nxf6 {[%emt 0:00:45]} 13. Ng3 {[%emt 0:00:14]} (13. Nxf6+ $142 Rxf6 14. Qd2) 13... e6 {[%emt 0:05:44]} 14. Bf1 {[%emt 0:06:43]} Nd5 {[%emt 0:02:59]} 15. Bg5 {[%emt 0:01:49]} Qd7 {[%emt 0:02:26]} 16. Ne4 {[%emt 0:04:43]} h6 {[%emt 0:04:54]} 17. Bd2 {[%emt 0:03:14]} Qf7 {[%emt 0:01:32]} 18. c3 {[%emt 0:00:11]} bxc3 {[%emt 0:01:28]} 19. bxc3 {[%emt 0:00:19]} Nf4 {[%emt 0:00:22][%cal Of4h3]} 20. Bxf4 {[%emt 0:02:05]} Qxf4 {[%emt 0:00:02]} 21. Ned2 {[%emt 0:00:03]} Bd7 {[%emt 0:02:20]} 22. Bc4 {[%emt 0:01:23][%cal Bf1c4,Bc4b3,Bb3a4][%mdl 32]} d5 {[%emt 0:02:51]} 23. Bb3 {[%emt 0:02:45]} g5 {[%emt 0:01:17]} 24. Re3 {[%emt 0:05:11]} Na5 {[%emt 0:06:11][%cal Oc7c5]} 25. Ba4 {[%emt 0:02:35]} c6 {[%emt 0:00:11]} (25... Bc8 $142) 26. Qe2 {[%emt 0:01:46]} Rab8 {[%emt 0:00:09]} 27. Qxa6 {[%emt 0:09:15]} Ra8 {[%emt 0:01:04]} 28. Qe2 {[%emt 0:00:34]} Nb7 {[%emt 0:00:38]} 29. Bc2 {[%emt 0:00:17]} c5 {[%emt 0:00:13]} 30. Qd3 {[%emt 0:01:05]} (30. Nb3 $18 {has better winning chances.}) 30... Qf5 {[%emt 0:00:46]} 31. Qxf5 {[%emt 0:00:06]} exf5 {[%emt 0:00:01]} 32. Rb1 {[%emt 0:00:36]} Bc8 {[%emt 0:01:05]} (32... cxd4 $142 33. cxd4 (33. Nxd4 Nc5 $14) 33... Nd6) 33. Re7 {[%emt 0:00:25]} g4 {[%emt 0:00:12]} 34. Ne5 {[%emt 0:01:18] 0x0.002205870f78dp-1022s more active pieces.} ({White should play} 34. hxg4 $16 {And now Rb6 would win.} fxg4 35. Ne5) 34... Rxa2 $2 {[%emt 0:00:05] [#]} (34... Bxe5 $14 35. Rxe5 (35. dxe5 Rxa2 36. Rc1 Rf7 $11) 35... Rxa2) 35. Bb3 $1 $18 {[%emt 0:00:20]} Rxd2 {[%emt 0:00:35]} 36. Bxd5+ {[%emt 0:00:04]} Kh7 {[%emt 0:00:04]} 37. Bxb7 {[%emt 0:00:45]} cxd4 {[%emt 0:00:47]} 38. Bxc8 {[%emt 0:01:49]} Rxc8 {[%emt 0:00:02] [#]} 39. Rbb7 $1 $36 {[%emt 0:00:06][%mdl 2048] White is in control.} ({Stronger than} 39. hxg4 dxc3 40. Rbb7 (40. gxf5 $2 c2 $19) 40... Rg8 41. gxf5 c2 $11) 39... Rg8 {[%emt 0:00:05]} 40. cxd4 {[%emt 0:00:39] Nc4 is the strong threat.} ({Much worse is} 40. hxg4 $6 dxc3 41. gxf5 c2 $11) 40... Rxd4 {[%emt 0:00:45] [#]} 41. h4 $1 {[%emt 0:00:28]} h5 $2 {[%emt 0:00:47] A mistake that costs the game.} (41... Re4 $16 42. h5 Re2) 42. Rf7 {[%emt 0:00:26]} Kh6 {[%emt 0:02:40]} (42... f4 {was worth a try.} 43. Rf5 Rd6) 43. Rb6+ {[%emt 0:00:31] White is clearly winning.} Kh7 {[%emt 0:00:03]} 44. Rxf5 {[%emt 0:01:27]} Re8 {[%emt 0:00:38]} 45. Rxh5+ {[%emt 0:00:46]} Kg8 {[%emt 0:00:04]} 46. Rg6 {[%emt 0:00:01]} Rd1+ {[%emt 0:02:32]} 47. Kh2 {[%emt 0:00:07]} Rd5 {[%emt 0:00:25] [#]} (47... Re1 $142 48. Nxg4 R8e7) 48. Rhg5 $1 {[%emt 0:00:08]} Re7 {[%emt 0:00:27]} (48... g3+ 49. Kxg3) 49. Nxg4 {[%emt 0:00:06]} (49. Nc6 $142 Red7 50. Rxd5 Rxd5 51. Ne7+ Kf8 52. Nxd5 g3+ 53. Rxg3) 49... Rd4 {[%emt 0:00:21]} (49... Rxg5 $142 50. Rxg5 Kh7) 50. Nh6+ {[%emt 0:00:25]} Kh7 {[%emt 0:00:20]} 51. Nf5 {[%emt 0:00:09][%csl LRd4,LRe7,LRg7] Weighted Error Value: White=0.23 (precise) /Black=0.36} 1-0

[Event "Charlotte IM-C May 2022"]
[Site "Charlotte"]
[Date "2022.05.04"]
[Round "1.2"]
[White "Andrianov, Nikolai"]
[Black "Johnson, Donald"]
[Result "1/2-1/2"]
[WhiteElo "2317"]
[BlackElo "2102"]
[Annotator "TA"]
[PlyCount "32"]
[EventDate "2022.05.04"]
[EventType "tourn"]
[EventCountry "USA"]
[SourceTitle "playchess.com"]
[Source "ChessBase"]
[SourceQuality "1"]
[TimeControl "5400+30"]

{[%evp 15,17,11,8,20]} 1. d4 {[%emt 0:03:02]} Nf6 {[%emt 0:00:12]} 2. Nf3 {[%emt 0:00:19]} g6 {[%emt 0:00:02]} 3. g3 {[%emt 0:00:06]} Bg7 {[%emt 0:00:05]} 4. Bg2 {[%emt 0:00:09]} O-O {[%emt 0:00:06]} 5. c4 {[%emt 0:00:09]} c6 {[%emt 0:00:07]} 6. O-O {[%emt 0:00:43]} d5 {[%emt 0:00:02]} 7. cxd5 {[%emt 0:01:48]} cxd5 {[%emt 0:00:05]} 8. Ne5 {[%emt 0:01:39]} Ne4 {[%emt 0:01:13]} 9. Nc3 {[%emt 0:00:17] [#] Not much happened in this game. D79: Fianchetto Grünfeld: Symmetrical Variation (6 0-0 c6 7 cxd5 cxd5).} {Predecessor:} Nxc3 $146 10. bxc3 Nc6 11. Nxc6 bxc6 12. Qa4 Qb6 13. Ba3 Qa6 14. Qxa6 Bxa6 15. Rfe1 Rfe8 16. e3 Bf8 {½-½ (16) Sunilduth Lyna,N (2658)-Xiong,J (2686) Chess.com INT 2022} 1/2-1/2

[Event "Charlotte IM-C May 2022"]
[Site "Charlotte"]
[Date "2022.05.05"]
[Round "1.3"]
[White "King, Alexander"]
[Black "Zapata, Alonso"]
[Result "1/2-1/2"]
[ECO "D02"]
[WhiteElo "2283"]
[BlackElo "2367"]
[Annotator "TA"]
[PlyCount "78"]
[EventDate "2022.05.04"]
[EventType "tourn"]
[EventCountry "USA"]
[SourceTitle "playchess.com"]
[Source "ChessBase"]
[SourceQuality "1"]
[TimeControl "5400+30"]

{[%evp 15,78,9,14,11,13,-9,11,11,15,17,26,12,15,19,13,0,0,0,31,22,16,11,24,12,20,0,45,17,15,27,25,0,0,0,0,0,0,0,12,-7,0,1,1,0,0,0,0,0,0,0,0,0,0,0,0,0,0,0,0,0,0,0,0,0,-2]} 1. Nf3 {[%emt 0:00:02]} c5 {[%emt 0:02:47]} 2. c3 {[%emt 0:03:16]} Nf6 {[%emt 0:01:31]} 3. d4 {[%emt 0:00:07]} e6 {[%emt 0:00:16]} 4. Bf4 {[%emt 0:02:45]} Nc6 {[%emt 0:01:26]} 5. e3 {[%emt 0:03:15]} d5 {[%emt 0:03:37]} 6. Nbd2 {[%emt 0:00:16]} Be7 {[%emt 0:02:37]} 7. h3 {[%emt 0:01:20]} O-O {[%emt 0:01:01]} 8. Bd3 {[%emt 0:02:07]} b6 {[%emt 0:01:24]} 9. Qe2 {[%emt 0:04:35] D02: 1 d4 d5 2 Nf3 sidelines, including 2...Nf6 3 g3 and 2...Nf6 3 Bf4.} Bb7 {[%emt 0:01:43]} 10. Rd1 {[%emt 0:01:08]} Qc8 {[%emt 0:07:29]} 11. O-O {[%emt 0:05:53]} Rd8 {[%emt 0:04:02]} 12. Rfe1 {[%emt 0:02:48] [#]} a5 $146 {[%emt 0:01:40]} ({Predecessor:} 12... g6 13. a3 Nh5 14. Bh2 c4 15. Bc2 f5 16. Ne5 Nxe5 17. Bxe5 Bd6 18. g4 Ng7 {1-0 (32) Sliwa,B-Szapiel,H Krakow 1953}) 13. dxc5 {[%emt 0:06:08]} bxc5 {[%emt 0:09:31]} 14. e4 {[%emt 0:03:18]} Ba6 {[%emt 0:02:49]} (14... a4 {is more complex.} 15. a3 Ba6 16. c4 dxc4 17. Nxc4 Qb7) 15. Bxa6 {[%emt 0:08:33]} (15. exd5 {looks sharper.} Nxd5 16. Bxa6 Qxa6 17. Qe4) 15... Qxa6 {[%emt 0:01:04]} 16. exd5 {[%emt 0:01:05]} exd5 {[%emt 0:06:17]} 17. Qxa6 {[%emt 0:04:56]} Rxa6 {[%emt 0:00:23]} 18. Nf1 {[%emt 0:00:32]} h6 {[%emt 0:06:21]} 19. Ne3 {[%emt 0:04:19]} a4 {[%emt 0:01:42]} 20. Ne5 {[%emt 0:05:43]} Na5 {[%emt 0:17:27]} 21. N5g4 {[%emt 0:02:19]} Nxg4 {[%emt 0:05:07]} 22. hxg4 {[%emt 0:00:22]} ({Don't play} 22. Nxd5 {[#]} Rxd5 $1 23. Rxd5 Nf6 $15) 22... d4 {[%emt 0:00:08]} 23. Bc7 {[%emt 0:17:05] Threatens to win with Nf5.} Rd7 {[%emt 0:00:56] The position is equal.} 24. Bxa5 {[%emt 0:00:29]} Rxa5 {[%emt 0:00:44]} 25. Nc4 {[%emt 0:00:14]} Ra6 {[%emt 0:02:43]} 26. Ne5 {[%emt 0:03:40]} Rd8 {[%emt 0:00:47]} 27. Nd3 {[%emt 0:01:43] [#]} c4 $1 {[%emt 0:07:37][%cal Od4c3] Strongly threatening ...dxc3!} 28. Ne5 {[%emt 0:07:10]} (28. Rxe7 dxc3) 28... dxc3 {[%emt 0:03:50] White must now prevent ...Rxd1.} 29. bxc3 {[%emt 0:00:02]} Rxd1 {[%emt 0:01:22]} 30. Rxd1 $11 {[%emt 0:00:05][%mdl 4096] Endgame KRB-KRN} Bf6 {[%emt 0:00:12]} 31. Nd7 {[%emt 0:04:00]} Bxc3 {[%emt 0:03:05] Hoping for ...Rc6.} 32. Rc1 {[%emt 0:00:07]} Bb4 {[%emt 0:01:49]} 33. Rxc4 {[%emt 0:00:10]} Bd6 {[%emt 0:00:05]} 34. Rc8+ {[%emt 0:01:39]} Kh7 {[%emt 0:00:01]} 35. Nf8+ {[%emt 0:00:27]} Bxf8 {[%emt 0:00:07]} 36. Rxf8 {[%emt 0:00:04]} Rf6 {[%emt 0:01:41]} 37. g3 {[%emt 0:03:21]} Rf3 {[%emt 0:00:03]} 38. Kg2 {[%emt 0:00:05]} Ra3 {[%emt 0:00:14]} 39. Rxf7 {[%emt 0:00:05]} Rxa2 {[%emt 0:00:44] An interesting draw.  Weighted Error Value: White=0.05 (flawless) /Black=0.06 (flawless)} 1/2-1/2

[Event "Charlotte IM-C May 2022"]
[Site "Charlotte"]
[Date "2022.05.05"]
[Round "1.4"]
[White "Andrews, Todd"]
[Black "Canty, James"]
[Result "1/2-1/2"]
[ECO "B33"]
[WhiteElo "2209"]
[BlackElo "2225"]
[Annotator "TA"]
[PlyCount "42"]
[EventDate "2022.05.04"]
[EventType "tourn"]
[EventCountry "USA"]
[SourceTitle "playchess.com"]
[Source "ChessBase"]
[SourceQuality "1"]
[TimeControl "5400+30"]

{[%evp 9,42,27,64,54,67,67,60,69,67,66,63,41,51,8,19,15,10,18,16,0,0,0,0,-20,0,-17,0,-26,-22,-15,-9,-57,0,-18,-14]} 1. e4 {[%emt 0:00:03]} c5 {[%emt 0:00:05]} 2. Nf3 {[%emt 0:00:08]} Nc6 {[%emt 0:00:07]} 3. d4 {[%emt 0:00:07]} cxd4 {[%emt 0:00:08]} 4. Nxd4 {[%emt 0:00:07]} Nf6 {[%emt 0:00:07]} 5. Nc3 {[%emt 0:00:09]} h5 {[%emt 0:00:08]} 6. Be2 {[%emt 0:00:36] White is more active. B33: Sicilian: Pelikan and Sveshnikov Variations.} e5 {[%emt 0:00:10]} 7. Ndb5 {[%emt 0:00:58] Strongly threatening Bg5.} d6 {[%emt 1:33:15]} 8. Bg5 {[%emt 0:08:25] [#] Nd5 is the strong threat. White is slightly better.} a6 {[%emt 0:00:00]} 9. Na3 {[%emt 0:00:06] [#]} Be6 $146 {[%emt 0:00:00]} ({Predecessor:} 9... Be7 10. Bxf6 Bxf6 11. Nc4 Nd4 12. Nd5 Be6 13. Ncb6 Bxd5 14. Nxd5 g6 15. c3 Nc6 {0-1 (32) Kopylov,D (2150)-Kille,T (2360) Playchess.com INT 2021}) 10. O-O {[%emt 1:24:51]} Nd4 {[%emt 0:00:00]} 11. Nd5 {[%emt 0:00:00]} Bxd5 {[%emt 0:00:00]} (11... Nxe2+ {keeps more tension.} 12. Qxe2 Bxd5 13. Bxf6 Qxf6 14. exd5 Be7) 12. exd5 {[%emt 0:00:00]} Nxe2+ {[%emt 0:00:00]} 13. Qxe2 {[%emt 0:00:00]} Be7 {[%emt 0:00:00]} 14. Bxf6 {[%emt 0:00:00]} Bxf6 {[%emt 0:00:00]} 15. c4 {[%emt 0:00:00]} g6 {[%emt 0:00:00]} 16. f4 {[%emt 0:00:00][%cal Bf2f4,Bf4f5][%mdl 32]} O-O {[%emt 0:00:00] Hoping for ...exf4.} 17. f5 {[%emt 0:00:00]} Kg7 {[%emt 0:00:00]} 18. Rad1 {[%emt 0:00:00]} Qb6+ {[%emt 0:00:00]} 19. Kh1 {[%emt 0:00:00]} e4 {[%emt 0:00:00]} 20. Nc2 {[%emt 0:00:00]} (20. b3 $11) 20... Rae8 {[%emt 0:00:00]} (20... Qxb2 $15 21. fxg6 fxg6) 21. b3 {[%emt 0:00:00]} Qa5 {[%emt 0:00:00] Weighted Error Value: White=0.14 (very precise) /Black=0.11 (very precise)} 1/2-1/2

[Event "Charlotte IM-C May 2022"]
[Site "Charlotte"]
[Date "2022.05.05"]
[Round "1.5"]
[White "Fawole, John Oyeyemi"]
[Black "Rorrer, Grayson"]
[Result "0-1"]
[ECO "B92"]
[WhiteElo "2118"]
[BlackElo "2204"]
[Annotator "TA"]
[PlyCount "116"]
[EventDate "2022.05.04"]
[EventType "tourn"]
[EventCountry "USA"]
[SourceTitle "playchess.com"]
[Source "ChessBase"]
[SourceQuality "1"]
[TimeControl "5400+30"]

{[%evp 22,116,11,0,0,-27,-33,-65,-47,-60,-60,-43,-56,-56,-39,-52,-41,-38,-17,-32,-44,-75,-66,-82,-73,-108,-100,-94,104,0,0,0,8,6,7,0,0,2,9,9,14,13,9,13,19,16,9,9,10,-11,-20,-35,-47,-89,-76,-73,-12,-91,-81,-81,-81,-99,-50,-48,-60,-64,-64,-229,-237,-264,-262,-258,-210,-206,-185,-203,-195,-550,-362,-706,-691,-675,-672,-1202,-1074,-29973,-29974,-29975,-29976,-29975,-29976,-29976,-29977,-29977,-29978,-29977,-29965]} 1. e4 {[%emt 0:00:07]} c5 {[%emt 0:00:14]} 2. Nf3 {[%emt 0:00:09]} d6 {[%emt 0:00:08]} 3. d4 {[%emt 0:00:08]} cxd4 {[%emt 0:00:10]} 4. Nxd4 {[%emt 0:00:10]} Nf6 {[%emt 0:00:09]} 5. Nc3 {[%emt 0:00:07]} a6 {[%emt 0:00:10]} 6. Be2 {[%emt 0:00:17]} e5 {[%emt 0:00:12]} 7. Nb3 {[%emt 0:00:14]} Be7 {[%emt 0:00:15]} 8. O-O {[%emt 0:00:46]} O-O {[%emt 0:00:13]} 9. Be3 {[%emt 0:03:23]} Be6 {[%emt 0:00:24]} 10. a4 {[%emt 0:01:36]} Nbd7 {[%emt 0:00:31]} 11. a5 {[%emt 0:01:15]} Rc8 {[%emt 0:00:41]} 12. f3 {[%emt 0:00:41]} Qc7 {[%emt 0:01:49] B92: Sicilian Najdorf: 6 Be2.} 13. Rf2 {[%emt 0:00:45]} Qc6 {[%emt 0:01:58]} 14. Bf1 {[%emt 0:00:42]} d5 {[%emt 0:01:25] Black is slightly better.} 15. exd5 {[%emt 0:01:15]} Nxd5 {[%emt 0:01:45]} 16. Nxd5 {[%emt 0:00:41]} Bxd5 {[%emt 0:01:20]} 17. Rd2 {[%emt 0:00:26]} Nf6 {[%emt 0:08:31]} 18. Bb6 {[%emt 0:01:36]} Be6 {[%emt 0:03:40]} 19. Bd3 {[%emt 0:02:34] [#]} Nd7 $146 {[%emt 0:15:24]} ({Predecessor:} 19... e4 20. Nd4 Bc5 21. Bxc5 Qxc5 22. Bxe4 Bd5 23. Bf5 Rce8 24. c3 Re5 25. Bd3 Nh5 {1-0 (49) Kiss,K (2113)-Haszon,D (2022) Miskolc 2008}) 20. Be4 {[%emt 0:03:46]} Qb5 {[%emt 0:00:13]} 21. Be3 {[%emt 0:05:05]} Nf6 {[%emt 0:07:18] Prevents Bd5.} 22. Bd3 {[%emt 0:00:19]} Qb4 {[%emt 0:00:38]} 23. Re2 {[%emt 0:11:46]} e4 {[%emt 0:08:11]} 24. fxe4 {[%emt 0:01:12] aiming for Bd2.} Nxe4 {[%emt 0:02:15] Black is more active.} (24... Ng4 $17 {and life is bright.} 25. Kh1 Rfd8) 25. Bxe4 {[%emt 0:03:50]} (25. Nd4 $1 $16 Nf6 26. c3 (26. Nxe6 fxe6 27. c3 Qg4 $14)) 25... Qxe4 $11 {[%emt 0:00:22]} 26. Bg5 {[%emt 0:00:18]} Qb4 {[%emt 0:00:58]} 27. Bxe7 {[%emt 0:00:15]} Qxe7 {[%emt 0:00:12]} 28. Nd4 {[%emt 0:00:21]} Qc5 {[%emt 0:02:28] Strongly threatening ...Bg4.} 29. Qd2 {[%emt 0:01:24]} Rfd8 {[%emt 0:13:41]} 30. c3 {[%emt 0:00:31]} h6 {[%emt 0:00:35]} 31. Re3 {[%emt 0:00:41]} Bf5 {[%emt 0:02:12]} 32. b4 {[%emt 0:01:11]} Qc4 {[%emt 0:02:06]} 33. Rf1 {[%emt 0:01:53]} Bg6 {[%emt 0:02:06]} 34. Rfe1 {[%emt 0:05:58]} Kh7 {[%emt 0:01:14]} 35. g4 {[%emt 0:00:57]} Rd5 {[%emt 0:02:36]} 36. Rf1 {[%emt 0:02:16]} Rcd8 {[%emt 0:01:52][%cal Rd5d4]} 37. Rf4 {[%emt 0:00:54]} Qc7 {[%emt 0:00:09]} 38. Qf2 {[%emt 0:00:25]} Re5 {[%emt 0:00:39]} (38... b6 $1 $17 {[%cal Rb6a5]} 39. axb6 Qxb6) 39. h4 {[%emt 0:01:19]} (39. Rff3 $11) 39... Rxe3 {[%emt 0:01:16]} 40. Qxe3 {[%emt 0:00:13] [#]} Re8 $1 {[%emt 0:00:05]} 41. Qf3 {[%emt 0:03:04]} (41. Qd2 Re1+) 41... Qe5 {[%emt 0:00:54]} (41... Kg8 $17 {[%cal Og6d3] Threatens to win with ...Bd3!} 42. Qg3 Re1+ $1 43. Kf2 Rd1) 42. Qf2 {[%emt 0:01:42]} h5 {[%emt 0:00:26]} 43. gxh5 {[%emt 0:02:27]} Qxh5 {[%emt 0:00:11] Hoping for ...Qd1+.} 44. Kg2 $2 {[%emt 0:07:54] [#] This move loses the game for White.} (44. Qf3 $15) 44... Qd1 $1 $19 {[%emt 0:01:46]} 45. Qf3 {[%emt 0:01:39]} Qd2+ {[%emt 0:01:41]} 46. Qf2 {[%emt 0:01:01]} Qd3 {[%emt 0:00:52]} 47. h5 {[%emt 0:09:30]} Be4+ {[%emt 0:00:53]} ({Not} 47... Bxh5 48. Qh4 Re5 49. Qg3) 48. Kh2 {[%emt 0:00:37]} Re5 {[%emt 0:00:14] And now ...Rg5 would win.} ({Don't take} 48... Qxc3 {[#]} 49. Rxe4 $1 {[%mdl 512]} Rxe4 50. Qf5+ Kg8 51. Qxe4 $16) 49. Rh4 $2 {[%emt 0:00:36]} (49. Qe2 {is more resistant.} Qxe2+ 50. Nxe2) 49... Rg5 {[%emt 0:00:29]} 50. Rh3 $2 {[%emt 0:01:23]} (50. h6 gxh6 51. Qxf7+ Rg7 52. Qf2) 50... Qd1 {[%emt 0:00:06][%csl Ge4][%cal Rd1h1]} 51. Nf3 {[%emt 0:00:52]} Rf5 {[%emt 0:00:18][%cal Re4f3]} 52. Kg2 {[%emt 0:01:25]} Qd3 {[%emt 0:00:29] Against Qe3. ( -> ...Rxf3)} 53. Rg3 {[%emt 0:00:19]} Qxc3 {[%emt 0:00:18] Black mates.} 54. Qe2 {[%emt 0:00:04]} Bxf3+ {[%emt 0:00:29]} 55. Rxf3 {[%emt 0:00:03]} Qxf3+ {[%emt 0:00:07]} 56. Qxf3 {[%emt 0:00:02]} Rxf3 {[%emt 0:00:06]} 57. Kxf3 {[%emt 0:00:01]} Kh6 {[%emt 0:00:17]} 58. Kg4 {[%emt 0:00:04]} g6 {[%emt 0:00:08] Weighted Error Value: White=0.55/Black=0.19 (very precise)} 0-1